fUSD/lending_fUSD_20241201
["ID","MTS","AMOUNT","RATE_DAILY","PERIOD"]
[343909332,1733035832458,-500.0,7.999e-05,2]
[343909333,1733035832469,-119.54209216,8e-05,2]
[343909334,1733035832482,-5230.45790784,8e-05,2]
[343909335,1733035832491,-20316.42087129,8e-05,2]
[343909336,1733035832502,-616.74931099,8e-05,2]
[343909337,1733035832514,-19794.9078768,8e-05,2]
[343909338,1733035832525,-1038.54061623,8e-05,2]
[343909339,1733035832536,-404.92261432,8e-05,2]
[343909340,1733035832557,-795.4617536,8e-05,2]
[343909342,1733035837589,-3822.62758401,8e-05,2]
[343909343,1733035837602,-13824.0775912,8e-05,2]
[343909344,1733035837847,-20431.6824446,8e-05,2]
[343909345,1733035837881,-1219.09647326,8e-05,2]
[343909356,1733035839795,-4220.72405806,8e-05,2]
[343909357,1733035839808,-1532.84616134,8e-05,2]
[343909358,1733035839979,-450.34209016,8e-05,2]
[343909359,1733035842665,-964.61583919,8e-05,2]
[343909360,1733035842714,-481.02811643,8e-05,2]
[343909361,1733035842953,-10392.45998308,8e-05,2]
[343909362,1733035842966,-3256.50652326,8e-05,2]
[343909393,1733036434011,214.0,0.0001,10]
[343909398,1733036939379,-922.08,7.577e-05,2]
[343909399,1733036939404,-1852.42,7.621e-05,2]
[343909400,1733036939428,-23900.0,7.641e-05,2]
[343909401,1733036939457,-1500.0,7.728e-05,2]
[343909402,1733036939483,-240.17,7.738e-05,2]
[343909403,1733036939505,-271.47868519,7.75e-05,2]
[343909404,1733036939534,-150.0,7.787e-05,2]
[343909405,1733036939558,-1500.0,7.847e-05,2]
[343909406,1733036939581,-1500.0,7.883e-05,2]
[343909407,1733036939605,-2500.0,7.9e-05,2]
[343909408,1733036939628,-1500.0,7.932e-05,2]
[343909409,1733036939652,-1500.0,7.942e-05,2]
[343909410,1733036939675,-1500.0,7.951e-05,2]
[343909411,1733036939698,-1500.0,7.973e-05,2]
[343909412,1733036939722,-150.0,7.997e-05,2]
[343909413,1733036939747,-1208.326,7.998e-05,2]
[343909414,1733036939770,-150.0,7.998e-05,2]
[343909415,1733036939794,-150.0,7.998e-05,2]
[343909416,1733036939818,-150.0,7.998e-05,2]
[343909417,1733036939842,-150.0,7.998e-05,2]
[343909418,1733036939868,-150.0,7.998e-05,2]
[343909419,1733036939890,-150.0,7.998e-05,2]
[343909420,1733036939913,-150.0,7.998e-05,2]
[343909421,1733036939937,-150.0,7.998e-05,2]
[343909422,1733036939960,-150.0,7.998e-05,2]
[343909423,1733036939984,-150.0,7.998e-05,2]
[343909424,1733036940009,-150.0,7.998e-05,2]
[343909425,1733036940034,-150.0,7.998e-05,2]
[343909426,1733036940058,-150.0,7.998e-05,2]
[343909427,1733036940083,-150.0,7.998e-05,2]
[343909428,1733036940108,-150.0,7.998e-05,2]
[343909429,1733036940132,-150.0,7.998e-05,2]
[343909430,1733036940155,-645.15640933,7.999e-05,2]
[343909431,1733036940179,-957300.75729164,7.999e-05,2]
[343909450,1733037031823,-7024.34,7.746e-05,2]
[343909451,1733037031833,-150.0,7.998e-05,2]
[343909452,1733037031842,-75807.96086997,7.999e-05,2]
[343909453,1733037031872,-13948.81122043,7.999e-05,2]
[343909454,1733037032022,-497.95680311,7.999e-05,2]
[343909474,1733037037833,-282.87816809,7.732e-05,2]
[343909475,1733037038106,-221.41948336,7.732e-05,2]
[343909476,1733037038116,-1500.0,7.749e-05,2]
[343909477,1733037038127,-1500.0,7.821e-05,2]
[343909478,1733037038139,-1500.0,7.858e-05,2]
[343909479,1733037038149,-509.29765145,7.872e-05,2]
[343909480,1733037038159,-1500.0,7.95e-05,2]
[343909482,1733037038169,-112148.11574302,7.999e-05,2]
[343909485,1733037038200,-990.70234855,7.997e-05,2]
[343909487,1733037038215,-1724.75066557,7.999e-05,2]
[343909545,1733037039816,-24080.25,7.999e-05,2]
[343909546,1733037040158,-2711.03089799,7.999e-05,2]
[343909557,1733037042777,-1928.64332324,7.999e-05,2]
[343909559,1733037043132,-925.33354522,7.999e-05,2]
[343909575,1733037045908,-9166.80964013,7.999e-05,2]
[343909576,1733037045921,-3148.7,7.999e-05,2]
[343909577,1733037045933,-17152.88947269,7.999e-05,2]
[343909582,1733037046439,-4.2e-06,7.999e-05,2]
[343909585,1733037491554,-21746.74282006,0.00015,10]
[343909586,1733037576200,150.0,7.139e-05,2]
[343909587,1733037576223,150.0,7.139e-05,2]
[343909588,1733037576245,229.65039299,7.139e-05,2]
[343909589,1733037576269,23370.34960701,7.139e-05,2]
[343909590,1733037600263,250.0,7.139e-05,2]
[343909592,1733037733677,1852.42,7.106e-05,2]
[343909593,1733037804744,-151.53,7.553e-05,2]
[343909594,1733037804770,-1500.0,7.567e-05,2]
[343909595,1733037804792,-772.87351615,7.574e-05,2]
[343909596,1733037804816,-1500.0,7.611e-05,2]
[343909597,1733037804841,-175.44732873,7.611e-05,2]
[343909598,1733037804866,-1500.0,7.624e-05,2]
[343909599,1733037804888,-175.44732872,7.624e-05,2]
[343909600,1733037804910,-861.5,7.664e-05,2]
[343909601,1733037804935,-300.0,7.724e-05,2]
[343909602,1733037804957,-1500.0,7.726e-05,2]
[343909603,1733037804980,-150.0,7.732e-05,2]
[343909604,1733037805003,-806.2018264,7.747e-05,2]
[343909605,1733037845928,-693.7981736,7.747e-05,2]
[343909606,1733037845952,-271.47868519,7.747e-05,2]
[343909607,1733037845976,-1500.0,7.753e-05,2]
[343909608,1733037845999,-1500.0,7.8e-05,2]
[343909609,1733037846022,-1500.0,7.804e-05,2]
[343909610,1733037846046,-500.0,7.899e-05,2]
[343909611,1733037846069,-326.8333271,7.973e-05,2]
[343909612,1733037846092,-501.12355864,7.973e-05,2]
[343909613,1733037846114,-500.0,7.973e-05,2]
[343909614,1733037846139,-300.0,7.989e-05,2]
[343909615,1733037846162,-1406.76625547,7.99e-05,2]
[343909616,1733037955410,5307.63408097,6.94e-05,2]
[343909617,1733038003182,7177.42,0.0001,10]
[343909639,1733038232038,-240.17,7.447e-05,2]
[343909640,1733038232049,-967.95263642,7.5e-05,2]
[343909641,1733038232232,-4037.16924935,7.5e-05,2]
[343909642,1733038232242,-922.08,7.585e-05,2]
[343909643,1733038232252,-300.0,7.799e-05,2]
[343909644,1733038232262,-6019.0,7.8e-05,2]
[343909645,1733038232272,-264.3615,7.899e-05,2]
[343909646,1733038232282,-730.01004711,7.99e-05,2]
[343909647,1733038232291,-150.0,7.997e-05,2]
[343909648,1733038232301,-150.0,7.998e-05,2]
[343909649,1733038232311,-150.0,7.998e-05,2]
[343909650,1733038232321,-150.0,7.998e-05,2]
[343909651,1733038232331,-150.0,7.998e-05,2]
[343909652,1733038232341,-150.0,7.998e-05,2]
[343909653,1733038232352,-150.0,7.998e-05,2]
[343909654,1733038232362,-150.0,7.998e-05,2]
[343909655,1733038232373,-150.0,7.998e-05,2]
[343909656,1733038232383,-150.0,7.998e-05,2]
[343909657,1733038232392,-150.0,7.998e-05,2]
[343909658,1733038232402,-150.0,7.998e-05,2]
[343909659,1733038232413,-150.0,7.998e-05,2]
[343909660,1733038232422,-150.0,7.998e-05,2]
[343909661,1733038232432,-150.0,7.998e-05,2]
[343909662,1733038232442,-150.0,7.998e-05,2]
[343909663,1733038232452,-150.0,7.998e-05,2]
[343909664,1733038232464,-1208.326,7.998e-05,2]
[343909665,1733038232475,-993250.83651582,7.999e-05,2]
[343909666,1733038232487,-162834.54037418,7.999e-05,2]
[343909667,1733038232504,-18430.31465745,7.999e-05,2]
[343909668,1733038232533,-8022.152323,7.999e-05,2]
[343909669,1733038232545,-9725.30555842,7.999e-05,2]
[343909674,1733038238404,-151.62061726,7.999e-05,2]
[343909675,1733038238417,-22627.47206436,7.999e-05,2]
[343909692,1733038243382,-3492.79073097,7.999e-05,2]
[343909693,1733038243394,-2996.15832101,7.999e-05,2]
[343909736,1733038246024,-1863.70204814,7.999e-05,2]
[343909737,1733038246231,-1501499.11017333,7.999e-05,2]
[343909738,1733038246243,-19016.25867234,7.999e-05,2]
[343909739,1733038247805,674.15195322,0.0001496,10]
[343909740,1733038403090,-250.0,7.561e-05,2]
[343909741,1733038403112,-250.0,7.659e-05,2]
[343909742,1733038403124,-8394.0,7.659e-05,2]
[343909743,1733038444132,-300.0,7.658e-05,2]
[343909744,1733038444154,-300.0,7.659e-05,2]
[343909745,1733038444170,-7512.0,7.659e-05,2]
[343909746,1733038496652,-356.0,7.659e-05,2]
[343909747,1733038496666,-7088.0,7.659e-05,2]
[343909748,1733038496676,-356.0,7.659e-05,2]
[343909749,1733038571117,-973.3474,7.899e-05,2]
[343909750,1733038619690,-653.3052,7.899e-05,2]
[343909751,1733038619721,-249.1530379,7.899e-05,2]
[343909752,1733038619755,-213.58605214,7.899e-05,2]
[343909753,1733038619790,-215.37977479,7.973e-05,2]
[343909754,1733038619824,-150.0,7.998e-05,2]
[343909755,1733038619857,-150.0,7.998e-05,2]
[343909756,1733038619893,-150.0,7.998e-05,2]
[343909757,1733038619926,-150.0,7.998e-05,2]
[343909758,1733038619959,-150.0,7.998e-05,2]
[343909759,1733038619992,-150.0,7.998e-05,2]
[343909760,1733038620027,-150.0,7.998e-05,2]
[343909761,1733038620061,-150.0,7.998e-05,2]
[343909762,1733038620096,-150.0,7.998e-05,2]
[343909763,1733038620129,-150.0,7.998e-05,2]
[343909764,1733038620162,-150.0,7.998e-05,2]
[343909765,1733038620196,-150.0,7.998e-05,2]
[343909766,1733038620230,-150.0,7.998e-05,2]
[343909767,1733038620266,-150.0,7.998e-05,2]
[343909768,1733038620300,-590.99592615,7.998e-05,2]
[343909769,1733038620334,-150.0,7.998e-05,2]
[343909770,1733038620740,-6441.5739659,7.999e-05,2]
[343909771,1733038673357,-300.0,7.997e-05,2]
[343909772,1733038673399,-4400.0,7.999e-05,2]
[343909774,1733038732891,-667.14,7.899e-05,2]
[343909775,1733038732924,-300.0,7.998e-05,2]
[343909776,1733038732958,-1332.044,7.998e-05,2]
[343909777,1733038732990,-165.828,7.998e-05,2]
[343909778,1733038733091,-7069.976,7.999e-05,2]
[343909779,1733038773472,39700.0,0.00019,30]
[343909780,1733038773544,430784.98200579,0.00019,30]
[343909782,1733038858767,11006.64912411,0.00017,10]
[343909796,1733039432188,-250.0,7.587e-05,2]
[343909797,1733039432198,-152.28,7.6e-05,2]
[343909798,1733039432208,-300.0,7.617e-05,2]
[343909799,1733039432217,-954.30987795,7.618e-05,2]
[343909800,1733039432359,-10986.55331932,7.618e-05,2]
[343909801,1733039432373,-10468.8,7.618e-05,2]
[343909802,1733039432389,-1490.33680273,7.618e-05,2]
[343909803,1733039432399,-1000.0,7.9e-05,2]
[343909804,1733039432409,-150.0,7.997e-05,2]
[343909805,1733039432418,-837.0,7.998e-05,2]
[343909806,1733039432428,-150.0,7.998e-05,2]
[343909807,1733039432437,-150.0,7.998e-05,2]
[343909808,1733039432448,-150.0,7.998e-05,2]
[343909809,1733039432458,-150.0,7.998e-05,2]
[343909810,1733039432468,-150.0,7.998e-05,2]
[343909811,1733039432477,-150.0,7.998e-05,2]
[343909812,1733039432487,-150.0,7.998e-05,2]
[343909813,1733039432498,-150.0,7.998e-05,2]
[343909814,1733039432508,-150.0,7.998e-05,2]
[343909815,1733039432519,-150.0,7.998e-05,2]
[343909816,1733039432529,-150.0,7.998e-05,2]
[343909817,1733039432541,-150.0,7.998e-05,2]
[343909818,1733039432551,-150.0,7.998e-05,2]
[343909819,1733039432561,-150.0,7.998e-05,2]
[343909820,1733039432571,-150.0,7.998e-05,2]
[343909821,1733039432582,-150.0,7.998e-05,2]
[343909822,1733039432592,-1505.03992227,7.999e-05,2]
[343909823,1733039432608,-6127.228,7.999e-05,2]
[343909824,1733039432623,-5695.5,7.999e-05,2]
[343909825,1733039432636,-384352.00000015,7.999e-05,2]
[343909826,1733039432648,-4351.45093378,7.999e-05,2]
[343909885,1733039438226,-38889.74478118,7.999e-05,2]
[343909886,1733039438551,-664.01,7.999e-05,2]
[343909890,1733039440226,-879.73430539,7.999e-05,2]
[343909891,1733039440316,-2253.71,7.999e-05,2]
[343909892,1733039440795,-368.11409927,7.999e-05,2]
[343909893,1733039440808,-262.99331236,7.999e-05,2]
[343909895,1733039440819,-989.71676595,7.999e-05,2]
[343909896,1733039440856,-1029.34376198,7.999e-05,2]
[343909901,1733039443301,-6009.97324324,7.999e-05,2]
[343909902,1733039443365,-7199.9999995,7.999e-05,2]
[343909903,1733039443553,-3016.87199962,7.999e-05,2]
[343909904,1733039443565,-25535.09786,7.999e-05,2]
[343909911,1733039446204,-150.0,7.822e-05,2]
[343909912,1733039446214,-4693.41388698,7.999e-05,2]
[343909913,1733039446226,-33591.17260965,7.999e-05,2]
[343909914,1733039446237,-6800.0,7.999e-05,2]
[343909915,1733039446249,-125643.662,7.999e-05,2]
[343909916,1733039446260,-8661.885694,7.999e-05,2]
[343909917,1733039446272,-14968.70392,7.999e-05,2]
[343909918,1733039446283,-22342.0908,7.999e-05,2]
[343909919,1733039446294,-27686.29024,7.999e-05,2]
[343909920,1733039446306,-19192.6977,7.999e-05,2]
[343909921,1733039446316,-15244.10415,7.999e-05,2]
[343909922,1733039446327,-37058.4,7.999e-05,2]
[343909923,1733039446339,-4414.41955896,7.999e-05,2]
[343909924,1733039446652,-266.8508151,7.999e-05,2]
[343909925,1733039446672,-9335.2696,7.999e-05,2]
[343909926,1733039446684,-2871.57976914,7.999e-05,2]
[343909927,1733039451016,1187.54998694,0.00016952,10]
[343909928,1733039451249,7728.31275915,0.00016952,10]
[343909929,1733039451493,161.91482698,0.00016952,10]
[343909930,1733039708595,-483.75103595,0.0002,120]
[343909931,1733039708676,-450.0,0.00022,120]
[343909932,1733039708705,-450.0,0.00023,120]
[343909933,1733039708735,-300.0,0.00024,120]
[343909934,1733039708763,-2000.0,0.00024924,120]
[343909935,1733039708788,-200.0,0.00024924,120]
[343909936,1733039708815,-300.0,0.00025,120]
[343909937,1733039799128,300.0,0.00025,120]
[343909938,1733040044877,3544.0,0.00025,120]
[343909939,1733040149580,1929.0,0.00025,120]
[343909940,1733040205687,500.0,0.00024733,120]
[343909941,1733040215174,200.0,0.00024828,120]
[343909944,1733040483694,4057.68080682,0.00025,120]
[343909955,1733040632762,-250.0,7.389e-05,2]
[343909956,1733040632772,-300.0,7.439e-05,2]
[343909957,1733040632782,-331.9378639,7.44e-05,2]
[343909959,1733040632794,-804.1605,7.44e-05,2]
[343909962,1733040632809,-22763.9016361,7.44e-05,2]
[343909963,1733040632818,-3859.67430996,7.553e-05,2]
[343909965,1733040632828,-192.13,7.553e-05,2]
[343909967,1733040632840,-151.53,7.633e-05,2]
[343909970,1733040632851,-150.0,7.766e-05,2]
[343909972,1733040632863,-150.0,7.997e-05,2]
[343909974,1733040632873,-150.01,7.998e-05,2]
[343909976,1733040632886,-4231.06039002,7.998e-05,2]
[343909978,1733040632895,-150.0,7.998e-05,2]
[343909980,1733040632905,-150.0,7.998e-05,2]
[343909982,1733040632916,-150.0,7.998e-05,2]
[343909983,1733040632925,-150.0,7.998e-05,2]
[343909984,1733040632937,-150.0,7.998e-05,2]
[343909985,1733040632946,-150.0,7.998e-05,2]
[343909986,1733040632956,-150.0,7.998e-05,2]
[343909987,1733040632966,-150.0,7.998e-05,2]
[343909988,1733040632976,-150.0,7.998e-05,2]
[343909989,1733040632986,-150.0,7.998e-05,2]
[343909990,1733040632996,-150.0,7.998e-05,2]
[343909991,1733040633006,-150.0,7.998e-05,2]
[343909992,1733040633016,-150.0,7.998e-05,2]
[343909993,1733040633026,-150.0,7.998e-05,2]
[343909995,1733040633038,-150.0,7.998e-05,2]
[343909997,1733040633048,-150.0,7.998e-05,2]
[343909999,1733040633058,-1065.635,7.998e-05,2]
[343910001,1733040633069,-7372.48505031,7.999e-05,2]
[343910009,1733040638333,-150.7594893,7.998e-05,2]
[343910010,1733040638342,-1019.7316641,7.999e-05,2]
[343910011,1733040638386,-96100.0,7.999e-05,2]
[343910012,1733040638436,-498.21685905,7.999e-05,2]
[343910013,1733040638569,-11367.41771933,7.999e-05,2]
[343910016,1733040640283,-456.78167943,7.999e-05,2]
[343910017,1733040640295,-928.18100489,7.999e-05,2]
[343910022,1733040640436,-472.10724109,7.999e-05,2]
[343910023,1733040640447,-3666.2359676,7.999e-05,2]
[343910024,1733040640494,-687.42223309,7.999e-05,2]
[343910025,1733040640599,-869.74929005,7.999e-05,2]
[343910026,1733040640612,-828.16404582,7.999e-05,2]
[343910029,1733040643379,-929.39894139,7.999e-05,2]
[343910030,1733040643578,-536.31436543,7.999e-05,2]
[343910033,1733040646393,-563.22023086,7.999e-05,2]
[343910034,1733040646603,-3224.90713282,7.999e-05,2]
[343910035,1733040646615,-3186.00021,7.999e-05,2]
[343910036,1733040646628,-1540.07997,7.999e-05,2]
[343910037,1733040646764,-23974.99999999,7.999e-05,2]
[343910040,1733040653204,1278.0706,7e-05,2]
[343910041,1733040794831,2000.0,0.00024949,120]
[343910043,1733041138745,1921.47536674,0.00017,10]
[343910045,1733041282916,756.14,0.00017,10]
[343910046,1733041394719,2000.0,0.00024936,120]
[343910047,1733041464010,4435.37572571,0.00025,120]
[343910048,1733041486172,500.0,0.00025,120]
[343910049,1733041505715,1000.0,0.00025,120]
[343910050,1733041534659,286.24996656,0.00025,120]
[343910051,1733041568006,658.02285339,7e-05,2]
[343910056,1733041656437,1610.61038813,0.00025,120]
[343910068,1733041831645,-250.0,7.179e-05,2]
[343910069,1733041831655,-4828.76,7.359e-05,2]
[343910070,1733041831665,-151.53,7.363e-05,2]
[343910071,1733041831674,-490.14,7.383e-05,2]
[343910072,1733041831685,-300.0,7.569e-05,2]
[343910073,1733041831694,-23900.0,7.57e-05,2]
[343910074,1733041831704,-177.8,7.689e-05,2]
[343910075,1733041831714,-150.0,7.701e-05,2]
[343910076,1733041831723,-55.366715,7.76e-05,2]
[343910077,1733041834291,-94.633285,7.76e-05,2]
[343910078,1733041834302,-150.0,7.761e-05,2]
[343910079,1733041834312,-150.0,7.761e-05,2]
[343910080,1733041834323,-150.0,7.761e-05,2]
[343910081,1733041834332,-150.0,7.761e-05,2]
[343910082,1733041834342,-150.0,7.761e-05,2]
[343910083,1733041834352,-150.0,7.761e-05,2]
[343910084,1733041834363,-4.01142418,7.761e-05,2]
[343910085,1733041834375,-145.98857582,7.761e-05,2]
[343910086,1733041834386,-742.15042618,7.761e-05,2]
[343910087,1733041834398,-842.8424526,7.761e-05,2]
[343910088,1733041834410,-859.1,7.761e-05,2]
[343910091,1733041834422,-1044.0,7.761e-05,2]
[343910093,1733041834434,-14535.0,7.761e-05,2]
[343910095,1733041834451,-797.89999,7.761e-05,2]
[343910097,1733041834463,-10672.85334149,7.761e-05,2]
[343910113,1733041837515,-1768.88747288,7.761e-05,2]
[343910114,1733041837573,-278.40311,7.761e-05,2]
[343910115,1733041837694,-194391.83421786,7.761e-05,2]
[343910116,1733041837706,-69433.44731704,7.761e-05,2]
[343910117,1733041837717,-5024.82931398,7.761e-05,2]
[343910118,1733041837728,-45960.0,7.761e-05,2]
[343910119,1733041838073,-4465.75235797,7.761e-05,2]
[343910120,1733041838089,-167.94881,7.764e-05,2]
[343910121,1733041838099,-167.94881,7.764e-05,2]
[343910122,1733041838109,-248.003391,7.839e-05,2]
[343910123,1733041838119,-150.0,7.84e-05,2]
[343910124,1733041838130,-1250.0,7.9e-05,2]
[343910125,1733041838139,-973.17,7.94e-05,2]
[343910126,1733041838149,-300.45,7.94e-05,2]
[343910127,1733041838161,-167.94881,7.958e-05,2]
[343910128,1733041838181,-20274.84884057,7.98e-05,2]
[343910129,1733041838190,-42959.15334731,7.995e-05,2]
[343910130,1733041838200,-150.0,7.998e-05,2]
[343910131,1733041838210,-150.0,7.998e-05,2]
[343910132,1733041838219,-150.0,7.998e-05,2]
[343910133,1733041838229,-150.0,7.998e-05,2]
[343910134,1733041838239,-150.0,7.998e-05,2]
[343910135,1733041838248,-150.0,7.998e-05,2]
[343910136,1733041838257,-150.0,7.998e-05,2]
[343910137,1733041838267,-150.0,7.998e-05,2]
[343910138,1733041838276,-150.0,7.998e-05,2]
[343910139,1733041838285,-150.0,7.998e-05,2]
[343910140,1733041838294,-150.0,7.998e-05,2]
[343910141,1733041838303,-249.40308063,7.998e-05,2]
[343910142,1733041838312,-852.508,7.998e-05,2]
[343910143,1733041838323,-476.60893285,7.998e-05,2]
[343910144,1733041838333,-26517.06299824,7.999e-05,2]
[343910148,1733041839486,-2537.03952318,7.999e-05,2]
[343910149,1733041839497,-7987.15926747,7.999e-05,2]
[343910150,1733041839542,-1261.42272988,7.999e-05,2]
[343910151,1733041839553,-1353.23790222,7.999e-05,2]
[343910152,1733041839651,-662.70634916,7.999e-05,2]
[343910153,1733041839742,-2339.62,7.999e-05,2]
[343910154,1733041839753,-4465.35320515,7.999e-05,2]
[343910194,1733041842531,-783.60209391,7.999e-05,2]
[343910195,1733041842575,-8056.46038881,7.999e-05,2]
[343910196,1733041842587,-432.8691276,7.999e-05,2]
[343910197,1733041842685,-3444.95352169,7.999e-05,2]
[343910198,1733041842697,-15829.43431682,7.999e-05,2]
[343910199,1733041842806,-3963.4261,7.999e-05,2]
[343910200,1733041842854,-16190.46827625,7.999e-05,2]
[343910253,1733041845467,-2374.99999971,7.999e-05,2]
[343910254,1733041845527,-3432.94563016,7.999e-05,2]
[343910255,1733041845587,-4853.2371,7.999e-05,2]
[343910257,1733041846559,-3597.3003076,7.999e-05,2]
[343910258,1733041846570,-1365537.45527081,7.999e-05,2]
[343910259,1733041846587,-2471.773764,7.999e-05,2]
[343910261,1733042010823,546.647062,0.00025,120]
[343910262,1733042014165,200.0,0.00024937,120]
[343910264,1733042080612,1000.0,0.00025,120]
[343910265,1733042091899,1000.0,0.00025,120]
[343910266,1733042098629,2033.3,0.00025,120]
[343910267,1733042101704,1000.0,0.00025,120]
[343910268,1733042110350,1000.0,0.00025,120]
[343910269,1733042117753,1000.0,0.00025,120]
[343910270,1733042147522,1000.0,0.00025,120]
[343910271,1733042156357,1000.0,0.00025,120]
[343910272,1733042167168,1000.0,0.00025,120]
[343910273,1733042175352,1000.0,0.00025,120]
[343910274,1733042183835,1000.0,0.00025,120]
[343910275,1733042334729,3000.0,0.00025,120]
[343910276,1733042350337,3000.0,0.00025,120]
[343910277,1733042357922,3000.0,0.00025,120]
[343910278,1733042366032,3000.0,0.00025,120]
[343910279,1733042372014,246.17,5.792e-05,2]
[343910280,1733042373564,3000.0,0.00025,120]
[343910281,1733042381769,3000.0,0.00025,120]
[343910282,1733042388849,3000.0,0.00025,120]
[343910283,1733042395873,3000.0,0.00025,120]
[343910284,1733042403496,3000.0,0.00025,120]
[343910285,1733042416625,3000.0,0.00025,120]
[343910286,1733042424134,3000.0,0.00025,120]
[343910287,1733042432521,3000.0,0.00025,120]
[343910288,1733042446854,3000.0,0.00025,120]
[343910289,1733042453967,3000.0,0.00025,120]
[343910290,1733042460348,3000.0,0.00025,120]
[343910291,1733042481493,285.76,0.00025,120]
[343910293,1733042721333,-255.7,7.249e-05,2]
[343910294,1733042721359,-250.0,7.268e-05,2]
[343910295,1733042721388,-177.8,7.279e-05,2]
[343910296,1733042721413,-1952.22,7.28e-05,2]
[343910297,1733042721442,-197.62,7.587e-05,2]
[343910298,1733042721469,-150.0,7.589e-05,2]
[343910299,1733042721499,-2016.66,7.615e-05,2]
[343910325,1733043031665,-250.0,7.362e-05,2]
[343910326,1733043031674,-13365.28931637,7.407e-05,2]
[343910327,1733043031686,-656.33888538,7.407e-05,2]
[343910328,1733043031698,-1075.39500002,7.407e-05,2]
[343910329,1733043031709,-8802.97679823,7.407e-05,2]
[343910330,1733043031719,-1337.0,7.7e-05,2]
[343910331,1733043031728,-150.0,7.734e-05,2]
[343910332,1733043031740,-1000.0,7.899e-05,2]
[343910333,1733043031750,-1625.5966999,7.9e-05,2]
[343910334,1733043031761,-310.4033001,7.9e-05,2]
[343910335,1733043031771,-430.4568,7.973e-05,2]
[343910336,1733043031781,-213.92434109,7.973e-05,2]
[343910337,1733043031793,-286.59061756,7.973e-05,2]
[343910338,1733043031802,-129.40940244,7.973e-05,2]
[343910339,1733043031822,-370.59059756,7.973e-05,2]
[343910340,1733043031832,-159.75363851,7.973e-05,2]
[343910341,1733043031841,-203.4797574,7.973e-05,2]
[343910342,1733043031851,-500.0,7.973e-05,2]
[343910343,1733043031861,-150.0,7.997e-05,2]
[343910344,1733043031871,-669.8100697,7.998e-05,2]
[343910345,1733043031914,-329.14260328,7.998e-05,2]
[343910346,1733043031936,-1.04732702,7.998e-05,2]
[343910347,1733043031945,-150.0,7.998e-05,2]
[343910348,1733043031955,-150.0,7.998e-05,2]
[343910349,1733043031964,-150.0,7.998e-05,2]
[343910350,1733043031974,-150.0,7.998e-05,2]
[343910351,1733043031983,-150.0,7.998e-05,2]
[343910352,1733043031994,-150.0,7.998e-05,2]
[343910354,1733043032003,-150.0,7.998e-05,2]
[343910356,1733043032013,-150.0,7.998e-05,2]
[343910358,1733043032022,-150.0,7.998e-05,2]
[343910360,1733043032031,-150.0,7.998e-05,2]
[343910362,1733043032041,-1991.7878809,7.998e-05,2]
[343910364,1733043032051,-218.8436052,7.998e-05,2]
[343910365,1733043032061,-879.058,7.998e-05,2]
[343910367,1733043032072,-176.824,7.998e-05,2]
[343910369,1733043032082,-56094.99556635,7.999e-05,2]
[343910413,1733043037616,-500.0,7.973e-05,2]
[343910415,1733043037625,-130.00473776,7.999e-05,2]
[343910417,1733043037637,-401.77083539,7.999e-05,2]
[343910419,1733043037648,-1622.136761,7.999e-05,2]
[343910420,1733043037659,-7783.616792,7.999e-05,2]
[343910421,1733043037670,-11142.60299007,7.999e-05,2]
[343910422,1733043037681,-618.33509938,7.999e-05,2]
[343910423,1733043037692,-714.90888774,7.999e-05,2]
[343910424,1733043037725,-1215.03131899,7.999e-05,2]
[343910425,1733043037781,-457.16138461,7.999e-05,2]
[343910426,1733043037837,-519.08047843,7.999e-05,2]
[343910427,1733043037849,-6539.01680846,7.999e-05,2]
[343910436,1733043039639,-896.093,7.999e-05,2]
[343910437,1733043039651,-561.8025309,7.999e-05,2]
[343910438,1733043039694,-2111.47,7.999e-05,2]
[343910439,1733043039805,-2767.36081115,7.999e-05,2]
[343910440,1733043039817,-2434.16255148,7.999e-05,2]
[343910441,1733043039828,-25298.1702625,7.999e-05,2]
[343910442,1733043040151,-610.53243463,7.999e-05,2]
[343910443,1733043040162,-294.0,7.999e-05,2]
[343910448,1733043042669,-644.04874661,7.999e-05,2]
[343910450,1733043042681,-610.61960863,7.999e-05,2]
[343910451,1733043042726,-625.75778749,7.999e-05,2]
[343910452,1733043042781,-632.77612165,7.999e-05,2]